[Event "CCT Julius Baer-D2-Place 2024"]
[Site "Online"]
[Date "2024.09.26"]
[Round "1"]
[White "Guseinov, Gadir"]
[Black "Lazavik, Denis"]
[Result "0-1"]
[ECO "C56"]
[WhiteElo "2636"]
[BlackElo "2578"]
[Annotator "TA"]
[PlyCount "58"]
[EventDate "2024.09.25"]
[EventType "swiss"]
[EventCountry "NET"]
[SourceTitle "playchess.com"]
[Source "ChessBase"]
[SourceQuality "1"]
[TimeControl "600+2"]

{[%evp 11,58,0,2,-5,11,0,4,0,14,0,9,17,-4,0,-7,0,0,0,0,0,0,0,0,0,0,-13,0,-25,0,-12,-6,-45,-50,-66,-68,-72,-77,-88,-94,-119,-72,-238,-262,-247,-252,-450,-450,-443,-443]} 1. e4 {[%emt 0:00:06]} e5 {[%emt 0:00:03][%cal Be7e5,Be5d4,Bd4d3][%mdl 32]} 2. Nf3 {[%emt 0:00:10]} Nc6 {[%emt 0:00:01]} 3. d4 {[%emt 0:00:13]} exd4 {[%emt 0:00:02]} 4. Bc4 {[%emt 0:00:01]} Nf6 {[%emt 0:00:07]} 5. e5 {[%emt 0:00:02]} Ne4 {[%emt 0:00:06]} 6. Qe2 {[%emt 0:00:34]} Nc5 $1 {[%emt 0:00:04]} 7. c3 {[%emt 0:00:05] [#]} d3 {[%emt 0:00:28]} 8. Qe3 {[%emt 0:00:11][%cal Oe1g1]} Be7 {[%emt 0:00:20]} 9. O-O {[%emt 0:00:07][%cal Ob2b4] The position is equal.} O-O {[%emt 0:00:03]} 10. b4 {[%emt 0:00:23] Inhibits d6.} Ne6 {[%emt 0:00:03]} 11. Bxd3 {[%emt 0:00:04]} d6 {[%emt 0:01:22]} 12. Rd1 {[%emt 0:00:08]} Bd7 {[%emt 0:00:03]} 13. exd6 {[%emt 0:03:51]} (13. Qe4 $5 g6 $8 14. Bf1 $11) 13... Bxd6 {[%emt 0:00:09]} 14. b5 {[%emt 0:00:44]} Ne7 {[%emt 0:00:16]} 15. Ba3 {[%emt 0:00:20]} Re8 {[%emt 0:02:54]} 16. Bxd6 {[%emt 0:01:17]} cxd6 {[%emt 0:00:00]} 17. Na3 {[%emt 0:00:00]} Qc7 {[%emt 0:00:13][%cal Oa8c8]} 18. Rac1 {[%emt 0:00:15]} Rad8 {[%emt 0:00:41]} 19. Nd4 {[%emt 0:00:12]} Ng6 {[%emt 0:00:21]} 20. Nxe6 {[%emt 0:00:09]} Bxe6 {[%emt 0:00:00]} 21. Bxg6 {[%emt 0:00:32]} hxg6 {[%emt 0:00:03]} 22. Qd2 {[%emt 0:00:11]} Qc5 {[%emt 0:00:12]} 23. Qb2 {[%emt 0:00:03]} Rc8 {[%emt 0:00:07] Black has more active pieces.} 24. Re1 {[%emt 0:00:10]} Bf5 {[%emt 0:00:09]} 25. c4 {[%emt 0:00:10]} d5 {[%emt 0:00:15]} (25... Rxe1+ $142 26. Rxe1 d5 27. cxd5 Qxd5) 26. Rxe8+ $2 {[%emt 0:00:29] This move loses the game for White.} (26. Red1 $17 {was necessary.}) 26... Rxe8 $19 {[%emt 0:00:02]} 27. h3 {[%emt 0:00:20]} dxc4 {[%emt 0:00:05] Threatens to win with ...b6.} 28. Nxc4 {[%emt 0:00:07] [#]} (28. b6 axb6 29. Qb5 Qxb5 30. Nxb5) 28... Rc8 $1 {[%emt 0:00:04]} 29. b6 {[%emt 0:00:04]} axb6 {[%emt 0:00:03] Weighted Error Value: White=0.24 (precise) /Black=0.05 (flawless) .  Loses game:     	White=1     	---        Mistake:       	White=1     	Black=1      Inaccurate:     	White=1     	---        OK:         	White=7     	Black=9      Best:        	White=1     	---        Strong:       	---       	Black=1} 0-1

[Event "CCT Julius Baer-D2-Place 2024"]
[Site "Online"]
[Date "2024.09.26"]
[Round "1"]
[White "Santos Latasa, Jaime"]
[Black "Indjic, Aleksandar"]
[Result "0-1"]
[ECO "C55"]
[WhiteElo "2624"]
[BlackElo "2611"]
[Annotator "RC"]
[PlyCount "58"]
[EventDate "2024.09.25"]
[EventType "swiss"]
[EventCountry "NET"]
[SourceTitle "playchess.com"]
[Source "ChessBase"]
[SourceQuality "1"]
[TimeControl "600+2"]

1. e4 {[%emt 0:00:03]} e5 {[%emt 0:00:03]} 2. Nf3 {[%emt 0:00:01]} Nc6 {[%emt 0:00:01]} 3. Bc4 {[%emt 0:00:00]} Nf6 {[%emt 0:00:02]} 4. d3 {[%emt 0:00:01]} h6 {[%emt 0:00:01]} 5. c3 {[%emt 0:00:02]} d6 {[%emt 0:00:02]} 6. a4 {[%emt 0:00:02]} g6 {[%emt 0:00:01]} 7. O-O {[%emt 0:00:02]} Bg7 {[%emt 0:00:01]} 8. Re1 {[%emt 0:00:02]} O-O {[%emt 0:00:02]} 9. Nbd2 {[%emt 0:00:01]} Be6 {[%emt 0:00:03]} 10. Bxe6 {[%emt 0:00:04]} fxe6 {[%emt 0:00:02]} 11. b4 {[%emt 0:00:00]} g5 {[%emt 0:00:05]} 12. h3 {[%emt 0:00:08]} Ne7 {[%emt 0:00:01]} 13. d4 {[%emt 0:00:05]} Ng6 {[%emt 0:00:52]} 14. dxe5 {[%emt 0:00:04]} dxe5 {[%emt 0:00:00]} 15. Qb3 {[%emt 0:00:26]} Qe8 {[%emt 0:00:03]} 16. Nc4 {[%emt 0:00:06]} Nh5 {[%emt 0:00:11]} 17. Nh2 {[%emt 0:00:11]} Nhf4 {[%emt 0:00:02]} 18. Bxf4 {[%emt 0:00:07]} exf4 {[%emt 0:00:01]} 19. Rad1 {[%emt 0:00:05]} f3 {[%emt 0:00:11]} 20. g3 {[%emt 0:00:19]} Rd8 {[%emt 0:00:02]} 21. Rxd8 {[%emt 0:00:13]} Qxd8 {[%emt 0:00:02]} 22. Re3 {[%emt 0:00:04]} Rf7 {[%emt 0:00:16]} 23. Nxf3 {[%emt 0:00:23]} h5 {[%emt 0:00:03]} 24. Qc2 {[%emt 0:00:25]} Bh6 {[%emt 0:01:19]} 25. Nfe5 {[%emt 0:00:31]} Nxe5 {[%emt 0:00:08]} 26. Nxe5 {[%emt 0:00:03]} Rg7 {[%emt 0:00:01]} 27. Rd3 {[%emt 0:00:29]} Qf6 {[%emt 0:00:30]} 28. Nd7 {[%emt 0:00:07]} Qg6 {[%emt 0:00:01]} 29. e5 {[%emt 0:00:11]} Rxd7 {[%emt 0:00:32]} 0-1

[Event "CCT Julius Baer-D2-Place 2024"]
[Site "Online"]
[Date "2024.09.26"]
[Round "1"]
[White "Indjic, Aleksandar"]
[Black "Santos Latasa, Jaime"]
[Result "0-1"]
[ECO "B44"]
[WhiteElo "2611"]
[BlackElo "2624"]
[Annotator "TA"]
[PlyCount "114"]
[EventDate "2024.09.25"]
[EventType "swiss"]
[EventCountry "NET"]
[SourceTitle "playchess.com"]
[Source "ChessBase"]
[SourceQuality "1"]
[TimeControl "600+2"]

{[%evp 27,114,0,0,-23,-14,-14,-14,-51,-33,-66,-63,-50,-52,-89,-90,-86,-85,-91,-82,-79,-80,-77,-73,-84,-92,-108,-83,-79,-71,-78,-61,-54,-8,-4,0,0,0,0,0,0,6,-16,0,-97,-154,-246,-191,-223,-227,-402,-407,-422,-424,-427,-427,-427,-427,-389,-389,-395,-315,-395,-395,-395,-395,-395,-313,-410,-409,-410,-410,-1179,-1081,-1465,-1292,-29968,-29969,-29975,-29976,-29978,-29979,-29979,-29980,-29980,-29981,-29986,-29983,-29984,-29985]} 1. Nf3 {[%emt 0:00:03]} Nf6 {[%emt 0:00:04]} 2. c4 {[%emt 0:00:01]} c5 {[%emt 0:00:02]} 3. Nc3 {[%emt 0:00:01]} Nc6 {[%emt 0:00:02]} 4. d4 {[%emt 0:00:02]} cxd4 {[%emt 0:00:01]} 5. Nxd4 {[%emt 0:00:01]} e6 {[%emt 0:00:01]} 6. e4 {[%emt 0:00:14]} Bb4 {[%emt 0:00:14]} 7. Nxc6 {[%emt 0:00:03]} bxc6 {[%emt 0:00:00]} 8. Bd3 {[%emt 0:00:02]} e5 {[%emt 0:00:01]} 9. O-O {[%emt 0:00:04]} O-O {[%emt 0:00:02]} 10. h3 {[%emt 0:00:05] is the new trend. B44: Sicilian: Taimanov: 5 Nb5.} Bxc3 {[%emt 0:00:08]} 11. bxc3 {[%emt 0:00:01]} d6 {[%emt 0:00:00]} 12. f4 {[%emt 0:00:21]} Qe7 {[%emt 0:00:37]} 13. fxe5 {[%emt 0:01:12]} Qxe5 {[%emt 0:00:07]} 14. Bf4 $146 {[%emt 0:00:38]} ({Predecessor:} 14. Qe1 Nd7 15. Bf4 Qe6 16. Rd1 Ba6 17. Be2 Ne5 18. c5 Bxe2 19. Qxe2 dxc5 20. Bxe5 Qxe5 21. Qc4 Rae8 22. Rd7 Qe6 23. Qxe6 Rxe6 24. Rf4 {½-½ Berczes,D (2439)-Can,I (2505) Budapest SixDays 05 GM-A 2023 (4)}) 14... Qc5+ {[%emt 0:00:02]} 15. Kh1 {[%emt 0:00:01]} Be6 {[%emt 0:00:01]} 16. Qf3 {[%emt 0:00:10]} Nd7 {[%emt 0:00:13]} 17. Qg3 {[%emt 0:00:02]} (17. Qf2 {simplifies} Qxf2 18. Rxf2 Ne5 19. Rd1) 17... Ne5 {[%emt 0:00:04]} 18. Bh6 {[%emt 0:00:03]} Ng6 $1 {[%emt 0:00:03]} 19. Be3 {[%emt 0:00:04]} Qe5 {[%emt 0:00:11]} 20. Qe1 {[%emt 0:00:01]} c5 {[%emt 0:00:23]} 21. Rd1 {[%emt 0:00:44]} Rad8 {[%emt 0:00:06]} 22. Bg1 {[%emt 0:00:04]} Qg5 {[%emt 0:00:06]} 23. Bh2 {[%emt 0:00:06]} Ne5 {[%emt 0:00:03]} 24. Bf4 {[%emt 0:00:18]} Qe7 {[%emt 0:00:02]} 25. Bxe5 {[%emt 0:00:53]} dxe5 {[%emt 0:00:02]} 26. Qe3 {[%emt 0:00:01]} Rd7 {[%emt 0:00:15]} 27. Be2 {[%emt 0:00:02]} Rxd1 {[%emt 0:00:07]} 28. Rxd1 {[%emt 0:00:01]} Rb8 {[%emt 0:00:02]} 29. Qg3 {[%emt 0:00:21]} Qc7 {[%emt 0:00:14]} (29... Rb2 $15 30. Qxe5 f6 (30... Rxe2 $2 31. Qb8+ Qf8 32. Rd8 $18)) 30. Bg4 $1 $11 {[%emt 0:00:04]} Bxc4 {[%emt 0:00:46]} 31. Rd7 {[%emt 0:00:02]} Qb6 {[%emt 0:00:01]} 32. Qxe5 {[%emt 0:00:22]} Bxa2 {[%emt 0:00:01]} 33. Rc7 {[%emt 0:00:04]} a5 {[%emt 0:00:17]} 34. Kh2 {[%emt 0:00:39]} a4 {[%emt 0:00:11]} 35. Rc6 {[%emt 0:00:47] [#]} (35. Bc8 $11 g6 (35... Be6 36. Rxc5 Ra8 37. Rb5 $11) 36. Qe8+ Kg7 37. Rc6) 35... Qd8 $1 $17 {[%emt 0:00:04]} ({Inferior is} 35... Qxc6 36. Qxb8+) 36. Rxc5 {[%emt 0:00:01]} (36. Qxc5 $17 Bb3 37. e5) 36... Ra8 {[%emt 0:00:07]} 37. c4 {[%emt 0:00:07]} a3 {[%emt 0:00:18]} 38. Rd5 $2 {[%emt 0:00:08]} (38. Rc7 {was the only chance.} Qf8 39. Bh5) 38... Qf8 $19 {[%emt 0:00:29]} 39. Qc3 {[%emt 0:00:24]} Bxc4 {[%emt 0:00:07]} 40. Qxc4 {[%emt 0:00:01]} a2 {[%emt 0:00:02]} 41. Rd1 {[%emt 0:00:01]} a1=Q {[%emt 0:00:01]} ({Worse is} 41... a1=B 42. Rd7 $11) 42. Rxa1 {[%emt 0:00:01]} Rxa1 {[%emt 0:00:04]} 43. Qc7 {[%emt 0:00:07]} Rb1 {[%emt 0:00:09]} 44. Kg3 {[%emt 0:00:18]} Qb8 {[%emt 0:00:09]} 45. Qxb8+ {[%emt 0:00:02]} Rxb8 {[%emt 0:00:02]} 46. Kf4 {[%emt 0:00:00]} Rb4 {[%emt 0:00:04]} 47. Bf3 {[%emt 0:00:03]} Kf8 {[%emt 0:00:01]} 48. h4 {[%emt 0:00:08]} Ke7 {[%emt 0:00:02]} 49. h5 {[%emt 0:00:01]} (49. Bg4 $142) 49... Kf6 $19 {[%emt 0:00:06]} 50. Bg4 {[%emt 0:00:01]} g5+ {[%emt 0:00:10]} 51. hxg6 {[%emt 0:00:05]} fxg6 {[%emt 0:00:02]} 52. Bd7 {[%emt 0:00:08]} h5 {[%emt 0:00:10]} 53. Be8 {[%emt 0:00:02]} g5+ {[%emt 0:00:02]} 54. Ke3 {[%emt 0:00:02]} h4 {[%emt 0:00:08]} 55. Bd7 {[%emt 0:00:02]} Ke5 {[%emt 0:00:04]} 56. Bf5 {[%emt 0:00:01]} Rb3+ {[%emt 0:00:04]} 57. Kf2 {[%emt 0:00:01]} Kf4 {[%emt 0:00:01]} 0-1

[Event "CCT Julius Baer-D2-Place 2024"]
[Site "Online"]
[Date "2024.09.26"]
[Round "1"]
[White "Indjic, Aleksandar"]
[Black "Santos Latasa, Jaime"]
[Result "1/2-1/2"]
[ECO "E32"]
[WhiteElo "2611"]
[BlackElo "2624"]
[Annotator "ChessBase"]
[PlyCount "153"]
[EventDate "2024.09.25"]
[EventType "swiss"]
[EventCountry "NET"]
[SourceTitle "playchess.com"]
[Source "ChessBase"]
[SourceQuality "1"]
[TimeControl "600+2"]

1. d4 {[%emt 0:00:02]} Nf6 {[%emt 0:00:04]} 2. c4 {[%emt 0:00:01]} e6 {[%emt 0:00:05]} 3. Nc3 {[%emt 0:00:02]} Bb4 {[%emt 0:00:07]} 4. Qc2 {[%emt 0:00:03]} d6 {[%emt 0:00:02]} 5. Bg5 {[%emt 0:00:03]} Nbd7 {[%emt 0:00:03]} 6. e3 {[%emt 0:00:01]} c5 {[%emt 0:00:02]} 7. Bd3 {[%emt 0:00:09]} Qa5 {[%emt 0:00:11]} 8. Nf3 {[%emt 0:00:07]} cxd4 {[%emt 0:00:03]} 9. exd4 {[%emt 0:00:02]} Bxc3+ {[%emt 0:00:03]} 10. bxc3 {[%emt 0:00:01]} b6 {[%emt 0:00:02]} 11. O-O {[%emt 0:00:06]} Bb7 {[%emt 0:00:02]} 12. Bf4 {[%emt 0:00:04]} Bxf3 {[%emt 0:00:03]} 13. gxf3 {[%emt 0:00:00]} e5 {[%emt 0:00:10]} 14. Bg3 {[%emt 0:00:01]} O-O {[%emt 0:00:03]} 15. Rab1 {[%emt 0:00:09]} Rac8 {[%emt 0:00:05]} 16. Rb5 {[%emt 0:00:02]} Qa6 {[%emt 0:00:03]} 17. Re1 {[%emt 0:01:50]} Qb7 {[%emt 0:00:14]} 18. d5 {[%emt 0:00:01]} Nc5 {[%emt 0:00:13]} 19. Bf5 {[%emt 0:00:02]} Rce8 {[%emt 0:00:04]} 20. Bh4 {[%emt 0:00:02]} Nh5 {[%emt 0:00:31]} 21. Bxh7+ {[%emt 0:00:16]} Kh8 {[%emt 0:00:01]} 22. Bf5 {[%emt 0:00:02]} g6 {[%emt 0:00:03]} 23. Bh3 {[%emt 0:00:01]} Kg7 {[%emt 0:00:16]} 24. Bg5 {[%emt 0:00:21]} Nf4 {[%emt 0:00:26]} 25. Bxf4 {[%emt 0:00:03]} exf4 {[%emt 0:00:01]} 26. Rbb1 {[%emt 0:00:02]} Qa6 {[%emt 0:00:34]} 27. Qd2 {[%emt 0:00:04]} Re5 {[%emt 0:00:37]} 28. Rxe5 {[%emt 0:00:23]} dxe5 {[%emt 0:00:01]} 29. Qe2 {[%emt 0:00:00]} Re8 {[%emt 0:00:11]} 30. d6 {[%emt 0:00:30]} Qb7 {[%emt 0:00:02]} 31. Rd1 {[%emt 0:00:05]} f6 {[%emt 0:00:02]} 32. Rd5 {[%emt 0:00:03]} Qc6 {[%emt 0:00:11]} 33. Qd2 {[%emt 0:00:12]} Rd8 {[%emt 0:00:06]} 34. d7 {[%emt 0:00:56]} f5 {[%emt 0:00:23]} 35. Rxe5 {[%emt 0:00:22]} Rxd7 {[%emt 0:00:03]} 36. Rd5 {[%emt 0:00:05]} Qc7 {[%emt 0:00:32]} 37. Qd4+ {[%emt 0:00:05]} Kh7 {[%emt 0:00:08]} 38. Qf6 {[%emt 0:00:08]} Re7 {[%emt 0:00:35]} 39. Rd6 {[%emt 0:01:09]} Rg7 {[%emt 0:00:02]} 40. Qh4+ {[%emt 0:00:21]} Kg8 {[%emt 0:00:02]} 41. Rd8+ {[%emt 0:00:29]} Kf7 {[%emt 0:00:01]} 42. Rd5 {[%emt 0:00:27]} Ne6 {[%emt 0:00:10]} 43. Bf1 {[%emt 0:00:10]} Qe7 {[%emt 0:00:05]} 44. Qh8 {[%emt 0:00:05]} Ng5 {[%emt 0:00:49]} 45. Rd3 {[%emt 0:00:36]} Rg8 {[%emt 0:01:17]} 46. Qd4 {[%emt 0:00:05]} Ne6 {[%emt 0:00:03]} 47. Qe5 {[%emt 0:00:10]} Nc5 {[%emt 0:00:05]} 48. Qd5+ {[%emt 0:00:01]} Kg7 {[%emt 0:00:12]} 49. Rd1 {[%emt 0:00:08]} Qg5+ {[%emt 0:00:17]} 50. Bg2 {[%emt 0:00:05]} Re8 {[%emt 0:00:08]} 51. Qd4+ {[%emt 0:00:03]} Kh7 {[%emt 0:00:06]} 52. Kh1 {[%emt 0:00:04]} Qh4 {[%emt 0:00:03]} 53. Kg1 {[%emt 0:00:05]} Re7 {[%emt 0:00:13]} 54. Qd2 {[%emt 0:01:02]} Rd7 {[%emt 0:00:21]} 55. Qe2 {[%emt 0:00:00]} Rxd1+ {[%emt 0:00:07]} 56. Qxd1 {[%emt 0:00:00]} Qe7 {[%emt 0:00:02]} 57. Bf1 {[%emt 0:00:02]} Ne6 {[%emt 0:00:21]} 58. Qd5 {[%emt 0:00:02]} Ng5 {[%emt 0:00:06]} 59. Kg2 {[%emt 0:00:05]} Nf7 {[%emt 0:00:06]} 60. Qd4 {[%emt 0:00:01]} Qg5+ {[%emt 0:00:11]} 61. Kh1 {[%emt 0:00:02]} Qh4 {[%emt 0:00:13]} 62. c5 {[%emt 0:00:02]} bxc5 {[%emt 0:00:13]} 63. Qxc5 {[%emt 0:00:01]} Qf6 {[%emt 0:00:05]} 64. Qxa7 {[%emt 0:00:02]} Kh6 {[%emt 0:00:02]} 65. Qd4 {[%emt 0:00:01]} Qh4 {[%emt 0:00:05]} 66. a4 {[%emt 0:00:03]} Kh7 {[%emt 0:00:04]} 67. a5 {[%emt 0:00:04]} Ng5 {[%emt 0:00:01]} 68. Bg2 {[%emt 0:00:03]} Nh3 {[%emt 0:00:05]} 69. Bxh3 {[%emt 0:00:04]} Qxh3 {[%emt 0:00:01]} 70. Qd3 {[%emt 0:00:07]} g5 {[%emt 0:00:01]} 71. a6 {[%emt 0:00:03]} g4 {[%emt 0:00:01]} 72. Qxf5+ {[%emt 0:00:01]} Kh8 {[%emt 0:00:04]} 73. Qf8+ {[%emt 0:00:03]} Kh7 {[%emt 0:00:01]} 74. Qf7+ {[%emt 0:00:01]} Kh8 {[%emt 0:00:00]} 75. Qf8+ {[%emt 0:00:01]} Kh7 {[%emt 0:00:01]} 76. Qf7+ {[%emt 0:00:00]} Kh8 {[%emt 0:00:01]} 77. Qf8+ {[%emt 0:00:01]} 1/2-1/2

[Event "CCT Julius Baer-D2-Place 2024"]
[Site "Online"]
[Date "2024.09.26"]
[Round "1"]
[White "Daneshvar, Bardiya"]
[Black "Pranav Vijay"]
[Result "0-1"]
[ECO "E01"]
[WhiteElo "2598"]
[BlackElo "2252"]
[Annotator "TA"]
[PlyCount "92"]
[EventDate "2024.09.25"]
[EventType "swiss"]
[EventCountry "NET"]
[SourceTitle "playchess.com"]
[Source "ChessBase"]
[SourceQuality "1"]
[TimeControl "600+2"]

{[%evp 16,92,34,28,29,20,75,71,84,27,60,37,77,70,75,72,92,67,79,56,61,35,52,54,56,56,64,64,64,64,71,67,82,46,61,39,39,36,48,34,27,31,33,0,0,0,17,0,11,4,10,0,0,0,-8,0,18,-44,-30,-146,-150,-149,-156,-148,-149,-317,-294,-302,-308,-298,-290,-1141,-1137,-29982,-29983,-29991,-29992,-29992,-1120]} 1. Nf3 {[%emt 0:00:02]} Nf6 {[%emt 0:00:03]} 2. c4 {[%emt 0:00:02]} e6 {[%emt 0:00:01]} 3. g3 {[%emt 0:00:01]} d5 {[%emt 0:00:03]} 4. Bg2 {[%emt 0:00:00]} Bd6 {[%emt 0:00:04]} 5. d4 {[%emt 0:00:07]} O-O {[%emt 0:00:02]} 6. O-O {[%emt 0:00:01]} c6 {[%emt 0:00:05]} 7. b3 {[%emt 0:00:03]} Nbd7 {[%emt 0:00:02]} 8. Bb2 {[%emt 0:00:01]} b6 {[%emt 0:00:02]} 9. Nc3 {[%emt 0:00:02]} Bb7 {[%emt 0:00:01]} 10. Nd2 {[%emt 0:00:07][%cal Bf3d2,Bd2c4,Bc4e3][%mdl 32]} dxc4 {[%emt 0:01:21]} (10... Be7 $11) 11. Nxc4 {[%emt 0:00:08]} Be7 {[%emt 0:00:06] White is better.} 12. Qc2 {[%emt 0:00:10]} (12. a4 $16) 12... Rc8 {[%emt 0:00:02]} 13. Rfd1 {[%emt 0:00:02]} Qc7 {[%emt 0:00:01]} 14. e4 {[%emt 0:00:22]} b5 {[%emt 0:02:20]} 15. Ne3 {[%emt 0:00:04]} Qb8 {[%emt 0:00:07]} 16. Rac1 {[%emt 0:00:11]} Rfd8 {[%emt 0:00:11]} 17. Qb1 {[%emt 0:00:04]} Nb6 {[%emt 0:01:00]} 18. e5 {[%emt 0:00:32]} Nfd5 {[%emt 0:00:02]} 19. Nexd5 {[%emt 0:00:18]} Nxd5 {[%emt 0:00:03]} 20. Ne4 {[%emt 0:00:01]} b4 {[%emt 0:00:07]} 21. Nc5 {[%emt 0:00:09]} Bxc5 {[%emt 0:00:12]} 22. Rxc5 {[%emt 0:00:02]} Ba6 {[%emt 0:00:14][%cal Bb7a6,Ba6e2,Be2h5,Bh5g6,Bg6d3][%mdl 32]} 23. Be4 {[%emt 0:00:15]} h6 {[%emt 0:00:01]} 24. Qc1 {[%emt 0:00:04][%cal Oc1d2]} Qb6 {[%emt 0:00:06]} 25. Bb1 {[%emt 0:00:05]} Be2 {[%emt 0:00:32]} 26. Re1 {[%emt 0:00:55]} Bh5 {[%emt 0:00:02]} 27. Be4 {[%emt 0:00:03]} Ne7 {[%emt 0:00:04]} 28. Qc4 {[%emt 0:00:12]} Bg6 {[%emt 0:00:04]} 29. Bf3 {[%emt 0:00:05]} Bd3 {[%emt 0:00:30]} 30. Qc1 {[%emt 0:00:16]} (30. Qxd3 $2 Qxc5 31. Be4 Qa5 $19) 30... Rd7 {[%emt 0:00:11]} 31. g4 {[%emt 0:00:19]} Rcd8 {[%emt 0:00:10]} 32. Qe3 {[%emt 0:00:02][%cal Oh2h4]} (32. Bxc6 Nxc6 33. Rxc6 Qa5 $16) 32... Bg6 {[%emt 0:00:12]} 33. Rec1 {[%emt 0:00:12][%cal Ob2a1]} Qa6 {[%emt 0:00:07]} 34. Ra1 {[%emt 0:00:36]} Nd5 {[%emt 0:00:04][%cal Be7d5,Bd5b4,Bb4d3][%mdl 32]} 35. Qd2 {[%emt 0:00:58]} Qb6 {[%emt 0:01:35]} 36. a3 {[%emt 0:01:10]} (36. Rac1 $1 $11) 36... bxa3 $15 {[%emt 0:00:12]} 37. Rxa3 {[%emt 0:01:02]} (37. Bxa3 $11 Ne7 (37... Qxb3 38. Kg2 $11) 38. Rc3) 37... Nb4 $17 {[%emt 0:00:01] ...Qxc5 is the strong threat.} 38. Qe2 {[%emt 0:00:43]} Bd3 $36 {[%emt 0:00:34][%mdl 2048] Black is in control.} 39. Qd2 {[%emt 0:00:56] Hoping for Ra4.} Be4 $1 {[%emt 0:00:06]} 40. Qe3 {[%emt 0:00:18] This costs White the game.} (40. Bxe4 Qxc5 41. Ra4 a5 $19 (41... Qxe5 42. Qe1 $17)) (40. Rc4 $17 {was worth a try.} Bxf3 41. Rxb4) 40... Bxf3 $19 {[%emt 0:00:10]} 41. Qxf3 {[%emt 0:00:00] [#]} Nd3 $1 {[%emt 0:00:02][%mdl 512]} 42. Rxc6 {[%emt 0:00:10]} (42. Qxd3 Qxc5 43. Qc4 Qe7 44. Qxc6 Rxd4 45. Bxd4 Qxa3 $19) 42... Qb5 {[%emt 0:00:01]} (42... Nxb2 $2 {is the wrong capture.} 43. Rxb6 axb6 44. Ra2 $18) (42... Ne1 43. Qe4 Qb7 44. Bc3 $17) 43. Bc3 $2 {[%emt 0:00:18] [#]} (43. Rc2 Nxb2 44. Rxb2 Rxd4 45. Re2) 43... Nxe5 $1 {[%emt 0:00:10][%mdl 512]} 44. dxe5 {[%emt 0:00:02]} (44. Qe4 Qxc6) 44... Rd1+ {[%emt 0:00:00] Black mates.} 45. Kg2 {[%emt 0:00:01]} Qf1+ {[%emt 0:00:01]} 46. Kg3 {[%emt 0:00:00]} R1d3 {[%emt 0:00:00] Weighted Error Value: White=0.52/Black=0.07 (flawless) .  Loses game:     	White=1     	---        Mistake:       	White=4     	Black=1      Inaccurate:     	White=4     	Black=2      OK:         	White=14    	Black=13     Best:        	---       	Black=3      Strong:       	---       	Black=1      Brilliant:      	---       	Black=2} (46... Qg1+ $142 47. Kf4 g5+ (47... Qxh2+ $2 {perishes.} 48. Ke4 $16) (47... R1d3 $2 48. Rd6 $19) 48. Ke4 Re1+ (48... Qxh2 $2 49. Rxa7 Qh1 50. Qxh1 $18) 49. Bxe1 Qxe1+ 50. Qe3 Qh1+ (50... Qb4+ 51. Kf3 $15) 51. Qf3 Qb1+ (51... Qxh2 $2 52. Rxa7 Qf4+ 53. Qxf4 $18) 52. Rc2 Qxc2+ 53. Ke3 Qd3#) 0-1